Cogmind - Beta 13 @@@ ROGUE MODE // 2024.07.01 @ 02:41:18 Player: Switzy Result: Destroyed by Y-45 Defender with Heavy Assault Rifle Performance ------------- Evolutions (1) 500 Regions Visited (3) 600 Robots Destroyed (13) 65 Value Destroyed (365) 365 Prototype IDs (0) 0 Alien Tech Used (0) 0 Bonus (0) 0 TOTAL SCORE: 1530 Bonus ------- None Cogmind --------- Core Integrity 0/400 Matter 264/300 Energy 100/100 System Corruption 0% Temperature Cool (0) Movement Core (350) Ox6 Location -9/Mines Parts ------- > --- POWER (2) -------- (None) > --- PROPULSION (3) --- (None) > --- UTILITY (2) ------ Large Storage Unit > --- WEAPON (2) ------- (None) > --- INVENTORY (15) --- Small Storage Unit Visual Processing Unit Visual Processing Unit EM Pulse Gun Peak State ------------ > --- POWER ------------ Light Ion Engine > --- PROPULSION ------- Aluminum Leg Aluminum Leg Improved Aluminum Leg > --- UTILITY ---------- Large Storage Unit Visual Processing Unit > --- WEAPON ----------- Katana > --- INVENTORY -------- Small Storage Unit Visual Processing Unit Visual Processing Unit EM Pulse Gun [Rating: 11] Favorites ----------- Power Light Ion Engine Engine Light Ion Engine Propulsion Aluminum Leg Leg Aluminum Leg Utility Large Storage Unit Storage Large Storage Unit Processor Visual Processing Unit Weapon Assault Rifle Energy Gun EM Pulse Gun Ballistic Gun Assault Rifle Slashing Weapon Katana Build | -11 -10 -9 -9 ------- Run | Yrd Mat Mat Min Slots Evolved 2 | . . 2 . Power 1 | . . 1 . Propulsion 1 | . . 1 . Utility . | . . . . Weapon . | . . . . Parts Attached 14 | 5 1 7 1 Power 2 | 1 . 1 . Engine 2 | 1 . 1 . Core . | . . . . Reactor . | . . . . Propulsion 7 | 2 . 4 1 Treads . | . . . . Leg 7 | 2 . 4 1 Wheel . | . . . . Hover . | . . . . Flight . | . . . . Utility 2 | . 1 1 . Device . | . . . . Storage 1 | . 1 . . Processor 1 | . . 1 . Hackware . | . . . . Protection . | . . . . Artifact . | . . . . Weapon 3 | 2 . 1 . Energy Gun 1 | 1 . . . Energy Cannon . | . . . . Ballistic Gun 1 | 1 . . . Ballistic Cannon . | . . . . Launcher . | . . . . Special Weapon . | . . . . Impact Weapon . | . . . . Slashing Weapon 1 | . . 1 . Piercing Weapon . | . . . . Special Melee Weapon . | . . . . Unidentified Prototypes . | . . . . Parts Lost 12 | . . 5 7 Power 1 | . . . 1 Propulsion 7 | . . 3 4 Utility 1 | . . . 1 Weapon 3 | . . 2 1 Highest Loss Streak 7 | . . 5 7 To Critical Strikes . | . . . . Average Slot Usage (%) 66 | . 78 65 55 Engine 7 | . 14 5 8 Leg 24 | . 28 25 19 Storage 10 | . 7 11 11 Processor 6 | . . 7 5 Energy Gun 5 | . 14 5 . Ballistic Gun 6 | . 14 5 . Slashing Weapon 5 | . . 5 11 Naked Turns . | . . . . Heaviest Build 27 | 7 27 27 25 Greatest Support 33 | 20 20 33 33 Greatest Overweight (x) 7 | . 1 2 7 Average Overweight (x) . | . . . 1 Largest Inventory Capacity 15 | 5 15 15 15 Average Capacity 13 | 5 9 15 15 Most Carried 7 | 5 4 7 5 Average Carried 4 | 3 3 4 4 Final Capacity 15 | 5 15 15 15 Final Carried 5 | 3 3 5 4 Class Distribution -------------------- 78% | Mutant 21% | Scavenger-Mutant Dominant Class ---------------- Mutant | -10/Materials Mutant | -9/Materials Mutant | -9/Mines Resources | -11 -10 -9 -9 ----------- Run | Yrd Mat Mat Min Matter Collected 328 | . 30 298 . Remotely . | . . . . Salvage Created 514 | . 58 456 . Parts 35 | . 3 32 . Haulers Intercepted . | . . . . Recyclers Shooed . | . . . . Parts Field Recycled . | . . . . Retrieved Matter . | . . . . Parts Self-Destructed . | . . . . Prevented . | . . . . Kills | -11 -10 -9 -9 ------- Run | Yrd Mat Mat Min Combat Hostiles Destroyed 10 | . 2 8 . Melee 5 | . . 5 . Guns 5 | . 2 3 . Classes Destroyed 6 | . 2 4 . Recycler 1 | . . 1 . Watcher 2 | . 1 1 . Swarmer 2 | . 2 . . Grunt 5 | . . 5 . Duelist 1 | . . 1 . Sentry 2 | . . 2 . Best Kill Streak 5 | . 3 5 . Combat Bots Only 5 | . 2 5 . Max Kills in Single Turn 1 | . 1 1 . Gunslinging . | . . . . Exploded . | . . . . Melee 1 | . . 1 . Uniques/NPCs Destroyed . | . . . . Combat | -11 -10 -9 -9 -------- Run | Yrd Mat Mat Min Hostile Shots Fired 146 | . 14 78 54 Missed 46 | . 4 26 16 Damage Taken 1267 | . 80 767 420 Core 420 | . 10 263 147 Absorbed by Shields . | . . . . Core Remaining (%) 98 | 100 96 . . Volleys Fired 28 | . 9 19 . Largest 2 | . 2 2 . Hottest 60 | . 60 60 . Shots Fired 53 | . 18 35 . Gun 53 | . 18 35 . Cannon . | . . . . Launcher . | . . . . Special . | . . . . Kinetic 28 | . 9 19 . Thermal . | . . . . Explosive . | . . . . Electromagnetic 25 | . 9 16 . Robot Hit Streak 7 | . 5 7 . Robot Miss Streak 3 | . 3 3 . Penetration Max . | . . . . Secondary Targets 2 | . . 2 . Max Gunslinging Chain 1 | . . 1 . Shots Hit Robots 45 | . 11 34 . Core Hits 19 | . 3 16 . Critical Kills . | . . . . Critical Parts Destroyed . | . . . . Critical Strikes . | . . . . Melee Attacks 16 | . . 14 2 Impact . | . . . . Slashing 16 | . . 14 2 Piercing . | . . . . Sneak Attacks . | . . . . Combat Hostiles . | . . . . Follow-up Attacks . | . . . . Damage Inflicted 818 | . 175 643 . Guns 415 | . 155 260 . Cannons . | . . . . Explosions 20 | . 20 . . Melee 383 | . . 383 . Ramming . | . . . . Kinetic 218 | . 58 160 . Thermal 20 | . 20 . . Explosive . | . . . . Electromagnetic 197 | . 97 100 . Impact . | . . . . Slashing 383 | . . 383 . Piercing . | . . . . Highest Corruption . | . . . . Average Corruption . | . . . . Corruption Purged . | . . . . Corruption Blocked . | . . . . Overload Shots . | . . . . Overflow Damage . | . . . . Projectiles . | . . . . Explosions . | . . . . Melee . | . . . . Knockbacks . | . . . . Impact . | . . . . Kinetic . | . . . . Secondary . | . . . . Self-Inflicted Damage . | . . . . Shots . | . . . . Rammed . | . . . . Targets Rammed . | . . . . Kicked . | . . . . Crushed . | . . . . Highest Temperature 4 | . . 4 . Average Temperature 3 | . . 3 . Received Heat Transfer 366 | . . 231 135 Siege Activations . | . . . . Robots Corrupted . | . . . . Combat Hostiles . | . . . . Parts Fried . | . . . . Impact Corruptions . | . . . . Robots Melted . | . . . . Combat Hostiles . | . . . . Parts Melted . | . . . . Heat Transferred 50 | . 50 . . Parts Sabotaged . | . . . . Parts Stolen . | . . . . Parts Stripped . | . . . . Power Chain Reactions 1 | . 1 . . Alert | -11 -10 -9 -9 ------- Run | Yrd Mat Mat Min Peak Influence 230 | . 92 230 89 Initial 89 | . . 38 89 Average 115 | . 67 149 66 Maximum Alert Level 1 | . . 1 . Low Security (%) 78 | 100 100 65 100 Level 1 21 | . . 34 . Level 2 . | . . . . Level 3 . | . . . . Level 4 . | . . . . Level 5 . | . . . . High Security . | . . . . Max Security . | . . . . Squads Dispatched 1 | . . 1 . Investigation 1 | . . 1 . Extermination . | . . . . Reinforcement . | . . . . Assault . | . . . . Garrison . | . . . . Intercept . | . . . . Searches Triggered . | . . . . Construction Impeded . | . . . . Haulers Reinforced . | . . . . Active Scanning Responses . | . . . . Cargo Convoy Interrupts . | . . . . Stealth | -11 -10 -9 -9 --------- Run | Yrd Mat Mat Min Distress Signals . | . . . . Communications Jammed . | . . . . Distress Signals . | . . . . Times Spotted 23 | . 4 10 9 Peak Tracking Total 6 | . 3 6 6 Tactical Retreats 1 | . 1 . . Traps | -11 -10 -9 -9 ------- Run | Yrd Mat Mat Min Traps Triggered 1 | . . 1 . Indirectly . | . . . . Trap Hack Attempts . | . . . . Triggered . | . . . . Disarmed . | . . . . Reprogrammed . | . . . . Reused . | . . . . Traps Extracted . | . . . . Installed . | . . . . Triggered . | . . . . Machines | -11 -10 -9 -9 ---------- Run | Yrd Mat Mat Min Machines Disabled . | . . . . Max in Single Turn . | . . . . Machines Repaired . | . . . . Machines Dismantled . | . . . . Machines Sabotaged . | . . . . Overloaded Fab Kills . | . . . . Hacking | -11 -10 -9 -9 --------- Run | Yrd Mat Mat Min Machines Accessed . | . . . . Terminals . | . . . . Fabricators . | . . . . Repair Stations . | . . . . Recycling Units . | . . . . Scanalyzers . | . . . . Garrison Access . | . . . . Total Hacks . | . . . . Successful . | . . . . Failed . | . . . . Catastrophic . | . . . . Database Lockouts . | . . . . Manual . | . . . . Terminals . | . . . . Fabricators . | . . . . Repair Stations . | . . . . Recycling Units . | . . . . Scanalyzers . | . . . . Garrison Access . | . . . . Terminal Hacks . | . . . . Fabricator Hacks . | . . . . Repair Station Hacks . | . . . . Recycling Unit Hacks . | . . . . Scanalyzer . | . . . . Garrison Access Hacks . | . . . . Unauthorized Hacks . | . . . . Terminals . | . . . . Fabricators . | . . . . Repair Stations . | . . . . Recycling Units . | . . . . Scanalyzers . | . . . . Garrison Access . | . . . . Data Cores Recovered . | . . . . Used . | . . . . Hacking Detections . | . . . . Full Trace Events . | . . . . Feedback Events . | . . . . Feedback Blocked . | . . . . Robot Schematics Acquired . | . . . . Robots Built . | . . . . Authchips . | . . . . Time . | . . . . Total Robot Build Rating . | . . . . Part Schematics Acquired . | . . . . Parts Built . | . . . . Authchips . | . . . . Time . | . . . . Total Part Build Rating . | . . . . Parts Repaired . | . . . . Time . | . . . . Parts Recycled . | . . . . Recycled Matter . | . . . . Retrieved Matter . | . . . . Retrieved Components . | . . . . Parts Scanalyzed . | . . . . Part Schematics Acquired . | . . . . Parts Damaged . | . . . . Bothacking | -11 -10 -9 -9 ------------ Run | Yrd Mat Mat Min Used RIF Installer . | . . . . Robots Hacked . | . . . . Non-combat . | . . . . Combat . | . . . . Robot Hacks Applied . | . . . . Relay Couplers Released . | . . . . Fabnet Peak Effective % . | . . . . Robots Rewired . | . . . . Allies Hacked . | . . . . Hacks Repelled . | . . . . Allies | -11 -10 -9 -9 -------- Run | Yrd Mat Mat Min Total Allies . | . . . . Largest Group . | . . . . Highest-Rated Group . | . . . . Highest-Rated Ally . | . . . . Total Orders . | . . . . Ally Attacks . | . . . . Total Damage . | . . . . Kills . | . . . . Allies Corrupted . | . . . . Allies Melted . | . . . . Intel | -11 -10 -9 -9 ------- Run | Yrd Mat Mat Min Robot Analysis Total . | . . . . Derelict Logs Recovered . | . . . . Drone Launches . | . . . . Drone Recoveries . | . . . . Exploration | -11 -10 -9 -9 ------------- Run | Yrd Mat Mat Min Turns Passed 615 | 40 103 394 78 Spaces Moved 311 | 31 47 197 36 Core 15 | 12 . . 3 Treads . | . . . . Legs 296 | 19 47 197 33 Wheels . | . . . . Hover . | . . . . Flight . | . . . . Fastest Speed 50 | 50 120 120 120 Average Speed 147 | 92 160 144 198 Slowest Speed 400 | 120 190 260 400 Overloaded Moves . | . . . . Propulsion Burnouts . | . . . . Robots Hopped . | . . . . Cave-ins Triggered . | . . . . Exploration Rate (%) 14 | 3 17 25 14 Regions Visited 3 Branch Regions 1 Pre-discovered Areas . | . . . . Known Exits Taken . | . . . . Unknown Exits Taken 3 | 1 1 1 . Scrap Searched . | . . . . Spaces Dug . | . . . . Terrain Destroyed . | . . . . Melee . | . . . . Projectile . | . . . . AOE . | . . . . Terrain Rammed . | . . . . Walls Destroyed . | . . . . Machines Disabled . | . . . . Actions | -11 -10 -9 -9 --------- Run | Yrd Mat Mat Min Total 387 | 40 57 251 39 Wait 6 | . . 6 . Move 308 | 30 46 196 36 Hop . | . . . . Pick Up 15 | 5 1 9 . Fast Attach 3 | 3 . . . Attach 11 | 2 1 7 1 Detach . | . . . . Swap . | . . . . Drop . | . . . . Fire 28 | . 9 19 . Melee 16 | . . 14 2 Ram . | . . . . Kick . | . . . . Crush . | . . . . Escape Stasis . | . . . . Rewire . | . . . . Trap . | . . . . Miscellaneous . | . . . . Route ------- -11/Scrapyard -10/Materials -9/Materials -9/Mines (discovered 1 exit: [*Zio]) History --------- Turn | Location | Event 14 | -11/Scrapyard | Discovered new exit (range 15) 41 | -11/Scrapyard | Entered Materials 127 | -10/Materials | Discovered new exit (range 10) 144 | -10/Materials | Entered another Materials area 144 | -9/Materials | Evolved 2 slots: Power x1, Propulsion x1 298 | -9/Materials | Discovered new exit (range 10) 308 | -9/Materials | Build established: Mutant 334 | -9/Materials | Core integrity fell below 50% 389 | -9/Materials | Lost 5 parts (3n2w) 538 | -9/Materials | Entered Mines 569 | -9/Mines | Joined a pair of Derelicts in attacking an 0b10 outpost 580 | -9/Mines | A Derelict revealed a hidden shortcut to a safe place 605 | -9/Mines | Core integrity fell below 20% 616 | -9/Mines | Destroyed by Y-45 Defender with Heavy Assault Rifle Last Messages --------------- Core. 00591_ Y-45 Defender destroyed. 00591_ 6Y-BMX(g) suffers critical hit (Burn). 00592_ R-06 Scavenger collects Beam Rifle. 00593_ R-06 Scavenger collects Particle Gun. 00594_ K-01 Serf collects debris. 00594_ 6Y-BMX(g) destroyed. 00594_ Lgt. Ion Engine destroyed. 00595_ K-01 Serf collects debris. 00596_ R-06 Scavenger collects Sml. Laser. 00596_ K-01 Serf collects debris. 00597_ S-10 Pest destroyed. 00598_ K-01 Serf collects debris. 00599_ Aluminum Leg destroyed. 00601_ K-01 Serf collects debris. 00603_ Aluminum Leg destroyed. 00604_ K-01 Serf collects debris. 00611_ Katana destroyed. 00613_ Critical hit (Burn: +37). 00613_ K-01 Serf collects debris. Map ----- +----------------------------------------------------+ | ????????????????# ### #???????????????????? | | ????????????????# #?# #???????????????????? | | ????????????????# #?# #???????????????????? | | ????????????????##########?# #???????????????????? | | ???????????????????????????# #???????????????????? | | ?????????????????###?####### #???????????????????? | | ????????????????##]!## ## ###?????????????????? | | ????????????????# ]! # %** #?????????????????? | | ????????????????# /%* %[% #?????????????????? | | ????????????????# /%!= %## #???????????? | | ????????????????# ![ #%k #? ######????????????? | | ????????????????##![## r##? #?????????????????? | | ?????????????????###?## #?? ?????????????????? | | ??????????????????????# ##? ????????????????? | | ??????????????????????#r #######???????????????? | | ????????????????####### #????????????????????? | | ???????????????# $ #????????????????????? | | ???????????????# #######Y ##????????????????????? | | ???????????????????????# ##?????????????????????? | | ???????????????????????# ###### #?????????? | | ???????????????????????#=%* #?????????? | | ???????????????????????# s#######????????????????? | | ?????????????????????### s#??????????????????????? | | ???????????????????### ##?????????????????????? | | ??????????????????## ##????????????????????? | | ??????????????????# @ #????????????????????? | | ??????????????????## > #????????????????????? | | ???????????????????### ##????????????????????? | | ?????????????????????## ##?????????????????????? | | ??????????????????????#####??????????????????????? | | ?????????????????????????????????????????????????? | | ?????????????????????????????????????????????????? | | ?????????????????????????????????????????????????? | | ?????????????????????????????????????????????????? | | ?????????????????????????????????????????????????? | | ?????????????????????????????????????????????????? | | ?????????????????????????????????????????????????? | | ?????????????????????????????????????????????????? | | ?????????????????????????????????????????????????? | | ?????????????????????????????????????????????????? | | ?????????????????????????????????????????????????? | | ?????????????????????????????????????????????????? | | ?????????????????????????????????????????????????? | | ?????????????????????????????????????????????????? | | ?????????????????????????????????????????????????? | | ?????????????????????????????????????????????????? | | ?????????????????????????????????????????????????? | | ?????????????????????????????????????????????????? | | ?????????????????????????????????????????????????? | | ?????????????????????????????????????????????????? | +----------------------------------------------------+ Best States ------------- Heat Dissipation 28 Energy Generation 10 Energy Capacity 125 Matter Stores 259 Matter Capacity 300 Sight Range 18 Terrain Scan Density 10 Evasion (%) 55 Item Schematics ----------------- None Robot Schematics ------------------ None Fabricated ------------ Nothing Alien Tech Used ----------------- None Achievements -------------- None Challenges ------------ None Game ------ Seed AccelerationGatlingMediator Manual? 0 Play Time 00:07:48 Cumulative 4.5 hours Start 2024.07.01 @ 02:34:11 End 2024.07.01 @ 02:41:18 Sessions 1 Manual Loads 0 Difficulty Rogue Special Mode None Game No. 5 Rogue 3 Adventurer 2 Explorer 0 Win Type - Total 0 Types 0/0/0/0/0/0/0/0/0 Lore% 2 Gallery% 10 Achievement% 8 Wizard Run 0 Options --------- Layout 2 ASCII 0 Keyboard 0 Movement Mouse Keybinds 0 Fullscreen 1 Font 48/Smallcaps Map View 50x44 Zoom Use 0% Tactical HUD 1 Map Filters NONE Filters NONE Steam 1 RUN: c46f9e76-44cc-42c8-92c9-ea93e7603ec4